bitfinex-derivatives/quotes_BTCF0:USTF0_20241125
["timestamp","ask_amount","ask_price","bid_price","bid_amount"]
[1732551685439,0.3618,96483.0,96482.0,0.0159266]
[1732551686047,0.001,96483.0,96482.0,0.0159266]
[1732551686248,0.002,96483.0,96482.0,0.01602393]
[1732551686851,0.001,96483.0,96482.0,0.01602393]
[1732551687160,0.01,96491.0,96482.0,0.01602393]
[1732551687355,0.01,96491.0,96490.0,0.051816]
[1732551687544,0.01,96491.0,96490.0,0.276656]
[1732551688241,0.011,96491.0,96490.0,0.276656]
[1732551689056,0.1,96500.0,96499.0,0.051811]
[1732551689241,0.09863954,96500.0,96499.0,0.412611]
[1732551689441,0.07222954,96500.0,96499.0,0.413011]
[1732551689639,0.07222954,96500.0,96499.0,0.723891]
[1732551689857,0.01,96524.0,96520.0,0.051799]
[1732551690147,0.01,96524.0,96523.0,0.0004]
[1732551690350,0.01,96524.0,96523.0,0.2248]
[1732551690554,0.01,96524.0,96523.0,0.276598]
[1732551690754,0.01,96524.0,96523.0,0.2248]
[1732551691651,0.011,96524.0,96523.0,0.2248]
[1732551691848,0.012,96524.0,96523.0,0.0004]
[1732551692050,0.012,96524.0,96492.0,0.3608]
[1732551692051,0.9836,96524.0,96494.0,0.43548]
[1732551692252,0.3608,96504.0,96494.0,0.43548]
[1732551692442,0.00080001,96502.0,96494.0,0.43548]
[1732551692646,0.00080001,96502.0,96496.0,0.22436]
[1732551693255,0.00080001,96502.0,96499.0,0.22436]
[1732551693456,0.00180001,96502.0,96501.0,0.01755779]
[1732551693747,0.00180001,96502.0,96501.0,0.00155419]
[1732551693952,0.36260001,96502.0,96501.0,0.00155419]
[1732551694860,0.31268001,96502.0,96501.0,0.00155419]
[1732551695151,0.00180001,96502.0,96501.0,0.00155419]
[1732551695354,0.67348001,96502.0,96501.0,0.00155419]
[1732551695660,0.00180001,96502.0,96501.0,0.00155419]
[1732551698059,0.00180001,96502.0,96501.0,0.05336419]
[1732551698450,0.00180001,96502.0,96501.0,0.27772419]
[1732551700353,0.001,96502.0,96501.0,0.58860419]
[1732551700556,0.3708,96524.0,96512.0,0.051804]
[1732551700747,0.3708,96524.0,96514.0,0.10314584]
[1732551700950,0.3708,96524.0,96523.0,0.0004]
[1732551702061,0.3718,96524.0,96523.0,0.0004]
[1732551702360,0.011,96524.0,96523.0,0.42882366]
[1732551703056,0.012,96524.0,96523.0,0.42882366]
[1732551703653,0.012,96524.0,96523.0,0.50332366]
[1732551703654,0.011,96524.0,96523.0,0.50332366]
[1732551703863,0.012,96524.0,96523.0,0.50332366]
[1732551704661,0.011,96524.0,96523.0,0.50332366]
[1732551706062,0.011,96524.0,96523.0,0.72764366]
[1732551710359,0.011,96524.0,96523.0,0.50332366]
[1732551710660,0.011,96524.0,96523.0,0.72760366]
[1732551711265,0.011,96524.0,96523.0,0.42882366]
[1732551711458,0.011,96524.0,96523.0,0.60046566]
[1732551711663,0.011,96524.0,96523.0,0.37702566]
[1732551711862,0.011,96524.0,96523.0,0.65226366]
[1732551713861,0.12317506,96550.0,96523.0,0.91126566]
[1732551714159,0.12317506,96551.0,96548.0,0.051784]
[1732551714365,0.0727,96554.0,96549.0,0.0004]
[1732551714366,0.12317506,96550.0,96549.0,0.0004]
[1732551714671,0.12317506,96551.0,96550.0,0.0004]
[1732551714970,0.38272,96553.0,96550.0,5.362e-05]
[1732551714971,0.0518,96552.0,96550.0,5.362e-05]
[1732551715155,0.0518,96552.0,96551.0,0.2234]
[1732551715359,0.36252,96552.0,96551.0,0.2234]
[1732551715556,0.0518,96552.0,96550.0,0.0004]
[1732551715964,0.17587032,96551.0,96550.0,0.0004]
[1732551716167,0.0522,96551.0,96550.0,0.0004]
[1732551716359,0.414703,96551.0,96550.0,0.0004]
[1732551716759,0.0518,96549.0,96533.0,0.3608]
[1732551717060,0.00074638,96534.0,96533.0,0.01546963]
[1732551717262,0.00074638,96534.0,96529.0,0.051795]
[1732551717458,0.00074638,96534.0,96525.0,0.2234]
[1732551717459,0.3608,96530.0,96525.0,0.2234]
[1732551717755,0.3608,96530.0,96529.0,0.051795]
[1732551718970,0.6716,96530.0,96525.0,0.0157023]
[1732551719162,0.3608,96530.0,96524.0,0.051797]
[1732551719362,0.12371205,96529.0,96524.0,0.051797]
[1732551719564,0.12371205,96528.0,96524.0,0.051797]
[1732551719764,0.12371205,96527.0,96524.0,0.051797]
[1732551720065,0.12371205,96526.0,96525.0,0.051797]
[1732551720368,0.0707,96527.0,96513.0,0.81255387]
[1732551720369,0.12371205,96527.0,96513.0,0.81255387]
[1732551720669,0.12371205,96528.0,96527.0,0.051796]
[1732551720966,0.12371205,96529.0,96528.0,0.051795]
[1732551721271,0.12371205,96529.0,96528.0,0.052195]
[1732551721459,0.3608,96530.0,96528.0,0.052195]
[1732551721655,0.3608,96530.0,96528.0,0.0004]
[1732551721859,0.3608,96530.0,96529.0,0.052195]
[1732551722068,0.6716,96530.0,96529.0,0.0004]
[1732551723070,0.6716,96530.0,96529.0,0.01603152]
[1732551723365,0.6716,96530.0,96529.0,0.052195]
[1732551723869,0.3608,96530.0,96529.0,0.052195]
[1732551724171,0.3608,96530.0,96529.0,0.0004]
[1732551724467,0.3608,96530.0,96522.0,0.01593972]
[1732551724468,0.9716,96530.0,96522.0,0.01593972]
[1732551724657,0.9716,96530.0,96494.0,0.43528]
[1732551724658,0.3608,96527.0,96494.0,0.43528]
[1732551724866,0.15480897,96528.0,96501.0,0.22499419]
[1732551724867,0.3608,96503.0,96501.0,0.22499419]
[1732551725070,0.3608,96512.0,96511.0,0.051804]
[1732551725456,0.51562187,96512.0,96511.0,0.052204]
[1732551725657,0.0723,96517.0,96515.0,0.051802]
[1732551725863,0.4656823,96516.0,96515.0,0.051802]
[1732551726057,0.1548423,96516.0,96515.0,0.051802]
[1732551726271,0.12386961,96519.0,96518.0,0.051801]
[1732551726566,0.12386961,96530.0,96518.0,0.79608]
[1732551726755,0.12386961,96534.0,96529.0,0.3608]
[1732551726956,0.12386961,96537.0,96530.0,0.22344]
[1732551727171,0.12386961,96537.0,96536.0,0.051791]
[1732551727465,0.0518,96538.0,96537.0,0.051791]
[1732551727664,0.0518,96543.0,96542.0,0.051788]
[1732551727869,0.1548423,96544.0,96536.0,0.0004]
[1732551727870,0.1548423,96544.0,96543.0,0.051787]
[1732551728070,0.1548423,96547.0,96542.0,0.0004]
[1732551728266,0.5156423,96548.0,96543.0,0.0004]
[1732551728573,0.5156423,96548.0,96547.0,0.052185]
[1732551728762,0.00155439,96550.0,96547.0,0.22384]
[1732551729079,0.00155439,96550.0,96549.0,0.0004]
[1732551729370,0.00155439,96550.0,96547.0,0.22384]
[1732551729371,0.00155439,96550.0,96547.0,0.21773229]
[1732551729571,0.12395025,96549.0,96548.0,0.051785]
[1732551729874,0.3608,96566.0,96547.0,0.21773229]
[1732551729875,0.1548423,96553.0,96550.0,0.051783]
[1732551730060,0.0732,96569.0,96550.0,9.667e-05]
[1732551730061,0.16493607,96557.0,96550.0,9.667e-05]
[1732551730257,0.01,96557.0,96552.0,0.0004]
[1732551730461,0.01,96557.0,96556.0,0.05178]
[1732551735273,0.01,96557.0,96556.0,0.2234]
[1732551735575,0.49471782,96557.0,96556.0,0.2234]
[1732551735774,0.3708,96557.0,96556.0,0.2234]
[1732551735970,0.3708,96557.0,96552.0,0.0004]
[1732551735971,0.44494679,96557.0,96552.0,0.0004]
[1732551736164,0.15473047,96553.0,96552.0,0.0004]
[1732551736364,0.05231409,96553.0,96552.0,0.0004]
[1732551736570,0.36303409,96553.0,96552.0,0.0004]
[1732551736778,0.38681318,96553.0,96552.0,0.0004]
[1732551736965,0.38681318,96553.0,96544.0,0.22336]
[1732551736966,7.809e-05,96552.0,96551.0,0.051783]
[1732551737165,0.09982307,96552.0,96551.0,0.051783]
[1732551737471,0.10217036,96552.0,96544.0,0.3608]
[1732551737670,0.15472277,96548.0,96546.0,0.051785]
[1732551737869,0.18834732,96547.0,96545.0,0.22336]
[1732551738068,0.03362455,96546.0,96545.0,0.22336]
[1732551738571,0.03362455,96546.0,96545.0,0.051786]
[1732551738774,0.00984546,96546.0,96545.0,0.275146]
[1732551738973,7.809e-05,96552.0,96545.0,0.275146]
[1732551738974,0.15480086,96552.0,96548.0,0.051785]
[1732551739169,0.15472277,96550.0,96548.0,0.051785]
[1732551739366,0.15472277,96550.0,96545.0,0.22336]
[1732551739367,0.00912971,96549.0,96545.0,0.2168548]
[1732551739673,0.00234639,96546.0,96545.0,0.2168548]
[1732551739889,0.051788,96541.0,96537.0,0.00012489]
[1732551740173,0.00234639,96546.0,96537.0,0.00012489]
[1732551740174,0.15472512,96543.0,96540.0,0.051789]
[1732551740377,0.15472512,96543.0,96537.0,0.00012489]
[1732551740876,0.00234639,96538.0,96537.0,0.05191589]
[1732551741174,0.00234639,96538.0,96537.0,0.00012489]
[1732551743566,0.31310639,96538.0,96537.0,0.00012489]
[1732551743873,0.7333361,96538.0,96537.0,0.00012489]
[1732551744673,0.4225761,96538.0,96537.0,0.00012489]
[1732551744871,0.72428392,96538.0,96537.0,0.00012489]
[1732551746465,0.41352392,96538.0,96537.0,0.00012489]
[1732551746671,0.72428392,96538.0,96537.0,0.00012489]
[1732551747169,0.41352392,96538.0,96537.0,0.00012489]
[1732551747975,0.72428392,96538.0,96537.0,0.00012489]
[1732551748176,1.02428392,96538.0,96520.0,0.0518]
[1732551748377,1.02428392,96538.0,96510.0,0.00566]
[1732551748378,0.18568901,96524.0,96514.0,0.051803]
[1732551748677,0.51789775,96515.0,96510.0,0.00306]
[1732551748875,0.51789775,96515.0,96510.0,0.02233232]
[1732551748876,0.15475822,96514.0,96510.0,0.02233232]
[1732551749076,0.36314639,96511.0,96510.0,0.02233232]
[1732551749276,0.41353577,96511.0,96510.0,0.01927232]
[1732551749474,0.41353577,96511.0,96501.0,0.00155419]
[1732551749475,0.41353577,96511.0,96502.0,0.051809]
[1732551749779,0.07158001,96514.0,96502.0,0.051809]
[1732551749780,0.36314639,96503.0,96502.0,0.051809]
[1732551750377,0.48688673,96503.0,96502.0,0.051809]
[1732551750575,0.36314639,96503.0,96502.0,0.051809]
[1732551750876,0.48788673,96503.0,96502.0,0.009]
[1732551751082,0.36414639,96503.0,96502.0,0.009]
[1732551751594,0.72550051,96503.0,96502.0,0.009]
[1732551751780,0.051812,96497.0,96486.0,0.05189098]
[1732551751972,0.1237127,96489.0,96487.0,0.10305668]
[1732551752174,0.15464088,96494.0,96488.0,0.02848569]
[1732551752175,0.1237127,96494.0,96488.0,0.02848569]
[1732551752375,0.00900643,96493.0,96492.0,0.051815]
[1732551752878,0.0090058,96493.0,96492.0,0.051815]
[1732551753078,0.00107859,96503.0,96502.0,0.051809]
[1732551753269,7.859e-05,96503.0,96502.0,0.051809]
[1732551753673,7.859e-05,96503.0,96493.0,0.10305668]
[1732551753674,7.859e-05,96503.0,96496.0,0.051812]
[1732551753973,7.859e-05,96503.0,96493.0,0.10305668]
[1732551754179,7.859e-05,96503.0,96500.0,0.05181]
[1732551754388,0.00234639,96494.0,96493.0,0.10305668]
[1732551754577,0.00234639,96494.0,96490.0,0.00012093]
[1732551754881,7.859e-05,96503.0,96490.0,0.00012093]
[1732551754882,0.00234639,96491.0,96490.0,0.00012093]
[1732551755083,0.00107859,96503.0,96499.0,0.051811]
[1732551755084,0.1237127,96501.0,96499.0,0.051811]
[1732551755283,0.0717,96529.0,96500.0,0.3608]
[1732551755585,0.0026,96533.0,96500.0,0.3608]
[1732551755586,0.05039252,96526.0,96515.0,0.10305668]
[1732551755779,0.18556905,96525.0,96516.0,0.22256]
[1732551755973,0.3608,96517.0,96516.0,0.22256]
[1732551756175,0.3608,96517.0,96505.0,0.22256]
[1732551756176,0.36088172,96517.0,96505.0,0.22256]
[1732551756380,0.3608,96506.0,96500.0,0.0004]
[1732551756585,0.0004,96506.0,96504.0,0.051808]
[1732551757684,0.0004,96506.0,96503.0,0.22256]
[1732551758184,0.0004,96504.0,96502.0,0.051809]
[1732551758377,0.0004,96504.0,96500.0,0.1234678]
[1732551758378,0.0004,96504.0,96503.0,0.22256]
[1732551758579,0.0024,96506.0,96503.0,0.22256]
[1732551758783,0.09506606,96506.0,96503.0,0.22256]
[1732551759080,0.09506606,96506.0,96505.0,0.0004]
[1732551759081,0.09505361,96506.0,96505.0,0.0004]
[1732551759475,0.0014,96506.0,96505.0,0.0004]
[1732551759784,0.09404657,96506.0,96505.0,0.0004]
[1732551760085,0.0014,96506.0,96505.0,0.0004]
[1732551760275,0.09404483,96506.0,96505.0,0.0004]
[1732551760476,0.3622,96506.0,96505.0,0.0004]
[1732551760781,0.45484483,96506.0,96505.0,0.0004]
[1732551761384,0.3622,96506.0,96505.0,0.0004]
[1732551761582,0.0014,96506.0,96505.0,0.0004]
[1732551762886,0.31228,96506.0,96505.0,0.0004]
[1732551763274,0.31228,96506.0,96505.0,5.275e-05]
[1732551763477,0.364087,96506.0,96505.0,5.275e-05]
[1732551763676,0.31228,96506.0,96500.0,0.02041112]
[1732551763983,0.3608,96504.0,96500.0,0.02041112]
[1732551764183,0.3608,96504.0,96501.0,0.05181]
[1732551764386,0.31088,96503.0,96502.0,0.051809]
[1732551766378,0.31188,96503.0,96502.0,0.051809]
[1732551766585,0.31188,96503.0,96500.0,0.02041112]
[1732551766784,0.31188,96503.0,96490.0,0.00012093]
[1732551766785,0.051815,96491.0,96490.0,0.00012093]
[1732551766988,0.412615,96491.0,96490.0,0.00012093]
[1732551767281,0.723535,96491.0,96490.0,0.00012093]
[1732551768080,0.723535,96491.0,96490.0,0.05193693]
[1732551768274,0.67172,96491.0,96490.0,0.07122466]
[1732551768979,0.77393843,96491.0,96490.0,0.07122466]
[1732551769376,0.72212343,96491.0,96490.0,0.07122466]
[1732551769576,0.72212343,96491.0,96490.0,0.00012093]
[1732551769577,0.724535,96491.0,96490.0,0.00012093]
[1732551769782,0.724535,96491.0,96460.0,0.3608]
[1732551769783,0.051825,96473.0,96460.0,0.3608]
[1732551769993,0.051828,96468.0,96467.0,0.051828]
[1732551770284,0.051828,96468.0,96465.0,0.01987502]
[1732551770285,0.051829,96466.0,96465.0,0.01987502]
[1732551770485,0.051829,96466.0,96465.0,0.051828]
[1732551770673,0.051829,96466.0,96448.0,0.192238]
[1732551770674,0.3608,96472.0,96461.0,0.02125933]
[1732551770878,0.18556905,96478.0,96477.0,0.051823]
[1732551771091,0.05041563,96478.0,96477.0,0.051823]
[1732551771382,0.05041563,96478.0,96471.0,0.0004]
[1732551771383,0.3608,96485.0,96484.0,0.051819]
[1732551771777,0.3608,96485.0,96484.0,0.052219]
[1732551772681,0.3618,96485.0,96484.0,0.052219]
[1732551773288,0.3618,96485.0,96473.0,0.22176]
[1732551773476,0.00913024,96484.0,96479.0,0.051821]
[1732551773786,0.00913024,96483.0,96473.0,0.22176]
[1732551774091,0.00913024,96482.0,96480.0,0.051821]
[1732551774291,0.3618,96485.0,96480.0,0.051821]
[1732551774292,0.00913024,96481.0,96480.0,0.051821]
[1732551774781,0.00913024,96481.0,96474.0,0.051824]
[1732551775092,0.02469011,96480.0,96473.0,0.24117609]
[1732551775385,0.02469011,96480.0,96471.0,0.0004]
[1732551775386,0.15069772,96479.0,96471.0,0.0004]
[1732551775577,0.3608,96474.0,96471.0,0.0004]
[1732551775777,0.00119999,96472.0,96462.0,0.29426]
[1732551775978,0.09888197,96471.0,96468.0,0.0199164]
[1732551776181,0.09888197,96471.0,96459.0,0.22176]
[1732551776182,0.00159999,96469.0,96459.0,0.22176]
[1732551776385,0.07419186,96468.0,96456.0,0.125034]
[1732551776578,0.23737735,96471.0,96457.0,0.051833]
[1732551776579,0.36239999,96462.0,96457.0,0.051833]
[1732551776775,0.01073023,96462.0,96461.0,0.02104775]
[1732551777086,0.03450932,96462.0,96461.0,0.05338594]
[1732551777277,0.01073023,96462.0,96461.0,0.05338594]
[1732551777880,0.00119999,96472.0,96471.0,0.051826]
[1732551778077,0.02597908,96472.0,96471.0,0.051826]
[1732551778386,0.00219999,96472.0,96471.0,0.052226]
[1732551778580,0.00219999,96472.0,96471.0,0.0004]
[1732551778786,0.00119999,96472.0,96471.0,0.0004]
[1732551779888,0.00219999,96472.0,96471.0,0.0004]
[1732551780886,0.00219999,96472.0,96471.0,0.01973985]
[1732551781086,0.00219999,96472.0,96471.0,0.0004]
[1732551781883,0.36299999,96472.0,96471.0,0.0004]
[1732551782394,0.77619718,96472.0,96471.0,0.0004]
[1732551783189,0.41341218,96472.0,96471.0,0.0004]
[1732551783390,0.77630507,96472.0,96471.0,0.0004]
[1732551783593,0.77630507,96472.0,96461.0,0.00155494]
[1732551783594,0.72448007,96472.0,96461.0,0.00155494]
[1732551783892,0.3608,96462.0,96461.0,0.00155494]
[1732551784092,0.41121219,96462.0,96461.0,0.0208347]
[1732551784388,0.3608,96462.0,96461.0,0.0208347]
[1732551784589,0.36120001,96462.0,96461.0,0.0208347]
[1732551785588,0.09286121,96468.0,96467.0,0.051828]
[1732551785888,0.00230788,96472.0,96467.0,0.051828]
[1732551785889,0.00230788,96472.0,96467.0,0.3612]
[1732551786092,0.00230788,96472.0,96470.0,0.051826]
[1732551786286,0.15477429,96491.0,96486.0,0.051817]
[1732551786484,0.0026,96499.0,96487.0,0.0687]
[1732551786485,0.15477429,96499.0,96487.0,0.0687]
[1732551786692,0.15477429,96500.0,96490.0,0.00119999]
[1732551786881,0.15477429,96501.0,96495.0,0.00119999]
[1732551787083,0.15477429,96500.0,96495.0,0.00119999]
[1732551787284,0.36092182,96496.0,96495.0,0.00119999]
[1732551788293,0.00012182,96496.0,96495.0,0.05301299]
[1732551788884,0.00012182,96496.0,96495.0,0.00119999]
[1732551789595,0.00112182,96496.0,96495.0,0.00119999]
[1732551790389,0.00112182,96496.0,96495.0,0.02058206]
[1732551790692,0.00112182,96496.0,96495.0,0.00119999]
[1732551791090,0.3608,96505.0,96495.0,0.00119999]
[1732551791396,0.3608,96505.0,96496.0,0.22176]
[1732551791586,0.3608,96505.0,96496.0,0.273572]
[1732551791785,0.3608,96505.0,96496.0,0.22176]
[1732551791991,0.00010717,96504.0,96497.0,0.051812]
[1732551792187,0.00010717,96504.0,96496.0,0.22176]
[1732551792387,0.00010717,96504.0,96497.0,0.22176]
[1732551792791,0.15488146,96504.0,96497.0,0.22176]
[1732551793082,0.15488146,96504.0,96494.0,0.4597175]
[1732551793889,0.15588146,96504.0,96494.0,0.4597175]
[1732551794088,0.15477429,96502.0,96494.0,0.4597175]
[1732551794287,0.15477429,96503.0,96495.0,0.051813]
[1732551794694,0.15588146,96504.0,96495.0,0.051813]
[1732551795197,0.00110717,96504.0,96503.0,0.00119999]
[1732551795387,0.15592662,96504.0,96503.0,0.00119999]
[1732551796604,0.05150351,96504.0,96503.0,0.00119999]
[1732551796795,0.36238351,96504.0,96503.0,0.00119999]
[1732551797188,0.41419151,96504.0,96503.0,0.00119999]
[1732551797495,0.43338351,96504.0,96486.0,0.22172]
[1732551797704,0.15479917,96494.0,96486.0,0.22172]
[1732551797994,0.3608,96496.0,96495.0,0.051813]
[1732551798201,0.51559917,96496.0,96495.0,0.051813]
[1732551798391,0.15479917,96498.0,96497.0,0.051812]
[1732551798592,0.00110717,96504.0,96497.0,0.051812]
[1732551798593,0.15479917,96499.0,96497.0,0.051812]
[1732551798788,0.00110717,96504.0,96497.0,0.052212]
[1732551798789,0.15479917,96498.0,96497.0,0.052212]
[1732551798989,0.15479917,96498.0,96497.0,0.051812]
[1732551799191,0.18586617,96504.0,96497.0,0.051812]
[1732551799192,0.15479917,96499.0,96497.0,0.051812]
[1732551799400,0.15479917,96500.0,96497.0,0.051812]
[1732551799588,0.15479917,96500.0,96498.0,0.051811]
[1732551799789,0.15579917,96499.0,96498.0,0.051811]
[1732551800199,0.15579917,96499.0,96491.0,0.051815]
[1732551800409,0.051814,96494.0,96488.0,0.02392296]
[1732551800695,0.15479917,96492.0,96478.0,0.07]
[1732551800903,0.0714,96498.0,96478.0,0.0947931]
[1732551800904,0.3608,96487.0,96478.0,0.0947931]
[1732551801090,0.3608,96487.0,96478.0,0.0247931]
[1732551801091,0.3612,96479.0,96478.0,0.0247931]
[1732551801288,0.3612,96479.0,96469.0,0.051827]
[1732551801487,0.15482938,96477.0,96469.0,0.051827]
[1732551801695,0.0004,96470.0,96469.0,0.051827]
[1732551802795,0.0004,96470.0,96469.0,0.060827]
[1732551803601,0.0014,96470.0,96469.0,0.067827]
[1732551803995,0.0014,96470.0,96469.0,0.016]
[1732551804599,0.3622,96470.0,96469.0,0.016]
[1732551804804,0.3622,96470.0,96461.0,0.02585047]
[1732551804805,0.051831,96462.0,96461.0,0.02585047]
[1732551804990,0.56747583,96462.0,96461.0,0.00155494]
[1732551805191,0.72269082,96462.0,96450.0,9.832e-05]
[1732551805396,0.3608,96453.0,96450.0,9.832e-05]
[1732551805701,0.0004,96451.0,96450.0,0.05193532]
[1732551806089,0.0004,96451.0,96450.0,9.832e-05]
[1732551806397,0.0004,96451.0,96450.0,0.07650369]
[1732551806703,0.0004,96451.0,96450.0,0.05193532]
[1732551806896,0.0004,96451.0,96450.0,9.832e-05]
[1732551807096,0.0004,96451.0,96450.0,0.02490691]
[1732551807407,0.0004,96451.0,96450.0,9.832e-05]
[1732551807792,0.0004,96451.0,96450.0,0.02404654]
[1732551808394,0.0024,96451.0,96450.0,0.02404654]
[1732551808603,0.0054,96451.0,96450.0,0.02404654]
[1732551809703,0.0768,96451.0,96450.0,0.02404654]
[1732551809900,0.38784,96451.0,96422.0,0.0747]
[1732551810102,0.38784,96451.0,96415.0,0.0697]
[1732551810103,0.3608,96425.0,96415.0,0.0697]
[1732551810293,0.10305668,96432.0,96415.0,0.0697]
[1732551810500,0.3608,96427.0,96426.0,0.05185]
[1732551811608,0.3608,96427.0,96426.0,0.07667689]
[1732551811903,0.3618,96427.0,96426.0,0.07667689]
[1732551812608,0.3618,96427.0,96426.0,0.02482689]
[1732551812794,0.3618,96427.0,96422.0,0.001]
[1732551813192,0.3618,96427.0,96419.0,0.051854]
[1732551813511,0.3638,96427.0,96419.0,0.051854]
[1732551814106,0.3638,96427.0,96422.0,0.051852]
[1732551814494,0.3638,96427.0,96410.0,0.29562]
[1732551814495,0.051851,96425.0,96416.0,0.051855]
[1732551814698,0.3608,96419.0,96416.0,0.051855]
[1732551814900,0.0004,96417.0,96416.0,0.051856]
[1732551815305,0.0004,96417.0,96416.0,0.272776]
[1732551815506,0.0004,96417.0,96416.0,0.051856]
[1732551815700,0.0004,96417.0,96416.0,0.272776]
[1732551816596,0.0004,96417.0,96416.0,0.051856]
[1732551816803,0.0024,96417.0,96416.0,0.051856]
[1732551817003,0.0024,96417.0,96415.0,0.58172]
[1732551817004,0.0024,96417.0,96415.0,0.3608]
[1732551817309,0.0004,96416.0,96410.0,0.02441674]
[1732551817603,0.0004,96416.0,96409.0,0.05341477]
[1732551817792,0.0004,96411.0,96410.0,0.051858]
[1732551817998,0.003,96417.0,96410.0,0.051858]
[1732551818400,0.003,96417.0,96416.0,0.0004]
[1732551818903,0.002,96417.0,96416.0,0.0004]
[1732551819304,0.00208386,96417.0,96416.0,0.0004]
[1732551819500,0.00308386,96417.0,96416.0,0.0004]
[1732551819705,0.00108386,96417.0,96416.0,0.0004]
[1732551819903,0.00308386,96417.0,96416.0,0.0004]
[1732551820907,0.051857,96414.0,96409.0,0.02589156]
[1732551821099,0.3608,96413.0,96409.0,0.02433579]
[1732551821302,0.3608,96413.0,96408.0,8.937e-05]
[1732551821605,0.051859,96409.0,96408.0,8.937e-05]
[1732551822201,0.363019,96409.0,96408.0,8.937e-05]
[1732551823012,0.051863,96402.0,96400.0,0.1]
[1732551823199,0.4329,96401.0,96400.0,0.1]
[1732551823516,0.3612,96401.0,96400.0,0.1]
[1732551823706,0.3612,96401.0,96400.0,0.02662663]
[1732551825111,0.3622,96401.0,96400.0,0.05957626]
[1732551826707,0.3632,96401.0,96400.0,0.05957626]
[1732551827716,0.37218743,96401.0,96400.0,0.0271411]
[1732551828305,0.3632,96401.0,96400.0,0.0271411]
[1732551828605,0.3632,96401.0,96400.0,0.00182188]
[1732551828809,0.3632,96401.0,96383.0,0.3608]
[1732551829002,0.3608,96393.0,96383.0,0.02465927]
[1732551829204,0.3608,96393.0,96378.0,0.05197372]
[1732551829205,0.3612,96384.0,96378.0,0.05197372]
[1732551829608,0.0004,96379.0,96378.0,9.772e-05]
[1732551829905,0.0004,96379.0,96378.0,0.02427362]
[1732551830214,0.0004,96379.0,96378.0,9.772e-05]
[1732551830699,0.0004,96379.0,96378.0,0.05197372]
[1732551831306,0.0014,96379.0,96378.0,0.05197372]
[1732551831711,0.0024,96379.0,96378.0,0.05197372]
[1732551831915,0.0024,96379.0,96378.0,9.772e-05]
[1732551832304,0.3608,96391.0,96378.0,9.772e-05]
[1732551832606,0.3608,96391.0,96390.0,0.0004]
[1732551832912,0.36979918,96391.0,96390.0,0.0004]
[1732551833110,0.36979918,96391.0,96390.0,0.05227]
[1732551833504,0.00999918,96391.0,96390.0,0.05227]
[1732551833702,0.00999918,96391.0,96390.0,0.41307]
[1732551834314,0.00899918,96391.0,96390.0,0.41307]
[1732551834505,0.00999918,96391.0,96390.0,0.41307]
[1732551834708,0.0476832,96391.0,96390.0,0.3638]
[1732551834911,0.02630289,96391.0,96390.0,0.3638]
[1732551835415,0.02687889,96391.0,96390.0,0.05487]
[1732551835607,0.0115688,96391.0,96390.0,0.0797822]
[1732551836513,0.0115688,96391.0,96390.0,0.0279122]
[1732551836719,0.002,96391.0,96384.0,0.00052]
[1732551836905,0.38218031,96390.0,96384.0,0.02432086]
[1732551837105,0.38218031,96390.0,96378.0,0.05197372]
[1732551837106,0.02138031,96389.0,96378.0,0.05197372]
[1732551837318,0.02138031,96388.0,96378.0,0.07699388]
[1732551837521,0.02138031,96387.0,96378.0,0.29703388]
[1732551837811,0.48420013,96389.0,96384.0,0.005]
[1732551837812,0.02138031,96388.0,96384.0,0.005]
[1732551838022,0.12340013,96387.0,96384.0,0.006]
[1732551838317,0.12340013,96387.0,96384.0,0.001]
[1732551838528,0.12340013,96385.0,96384.0,0.001]
[1732551838819,0.20671762,96386.0,96384.0,0.001]
[1732551839020,0.051875,96380.0,96378.0,9.772e-05]
[1732551839325,0.051878,96375.0,96370.0,0.00155642]
[1732551839618,0.41308,96371.0,96370.0,0.02484595]
[1732551839817,0.41308,96371.0,96358.0,0.0713]
[1732551839818,0.051885,96362.0,96348.0,0.051892]
[1732551840020,0.3608,96358.0,96351.0,0.05189]
[1732551840209,0.3608,96358.0,96343.0,0.3608]
[1732551840210,0.4847688,96358.0,96343.0,0.3608]
[1732551840410,0.0004,96349.0,96348.0,0.051892]
[1732551840616,0.0004,96349.0,96343.0,0.3608]
[1732551840617,0.1239688,96357.0,96343.0,0.38520447]
[1732551841013,0.4847688,96358.0,96356.0,0.0004]
[1732551841215,0.3608,96358.0,96356.0,0.0004]
[1732551841418,0.3608,96358.0,96343.0,0.38520447]
[1732551841419,0.3628,96358.0,96357.0,0.0004]
[1732551841817,0.3618,96358.0,96357.0,0.0004]
[1732551842423,0.001,96358.0,96357.0,0.1442]
[1732551842613,0.002,96358.0,96357.0,0.1482]
[1732551843928,0.1239688,96377.0,96358.0,0.31132]
[1732551844110,0.1239688,96379.0,96378.0,0.051876]
[1732551844314,0.1239688,96383.0,96378.0,0.22008]
[1732551844514,0.1239688,96385.0,96380.0,0.051875]
[1732551844725,0.1239688,96386.0,96385.0,0.051872]
[1732551844922,0.1239688,96388.0,96387.0,0.051871]
[1732551845220,8.01e-05,96388.0,96387.0,0.052271]
[1732551845717,0.03054948,96388.0,96387.0,0.01983497]
[1732551846028,0.03054948,96388.0,96385.0,0.3608]
[1732551846029,0.16409181,96388.0,96385.0,0.3608]
[1732551846318,0.0008,96386.0,96385.0,0.3608]
[1732551846521,0.00989374,96386.0,96385.0,0.3608]
[1732551846824,0.0008,96386.0,96385.0,0.412672]
[1732551847413,0.0008,96386.0,96385.0,0.3608]
[1732551847716,0.0008,96386.0,96379.0,0.29158]
[1732551847717,0.03125903,96386.0,96378.0,0.02410761]
[1732551847924,0.051877,96377.0,96361.0,0.4324]
[1732551848116,0.3608,96369.0,96358.0,0.00155661]
[1732551848317,0.3608,96361.0,96358.0,0.00155661]
[1732551848616,0.15579043,96359.0,96358.0,0.02576731]
[1732551848821,0.0603482,96359.0,96358.0,0.00155661]
[1732551849135,0.0603482,96359.0,96349.0,0.051891]
[1732551849322,0.15510189,96356.0,96349.0,0.051891]
[1732551849513,0.0008,96350.0,96348.0,0.02487095]
[1732551849713,0.0008,96350.0,96341.0,0.0692]
[1732551849714,0.00907872,96349.0,96346.0,0.051893]